fUSD/lending_fUSD_20240424
["ID","MTS","AMOUNT","RATE_DAILY","PERIOD"]
[323424451,1713976249593,-500.0,0.0001178,2]
[323424453,1713976249602,-500.0,0.0001178,2]
[323424455,1713976249612,-500.0,0.0001178,2]
[323424457,1713976249621,-362.33238684,0.0001178,2]
[323424459,1713976249630,-500.0,0.0001178,2]
[323424461,1713976249641,-500.0,0.0001178,2]
[323424463,1713976249650,-500.0,0.0001178,2]
[323424466,1713976249660,-500.0,0.0001178,2]
[323424467,1713976249670,-500.0,0.0001178,2]
[323424470,1713976249679,-500.0,0.0001178,2]
[323424471,1713976249688,-500.0,0.0001178,2]
[323424473,1713976249698,-500.0,0.0001178,2]
[323424476,1713976249707,-500.0,0.0001178,2]
[323424478,1713976249716,-500.0,0.0001178,2]
[323424480,1713976249725,-500.0,0.0001178,2]
[323424481,1713976249734,-500.0,0.0001178,2]
[323424483,1713976249743,-791.18,0.0001178,2]
[323424486,1713976249752,-500.0,0.0001178,2]
[323424488,1713976249762,-579.07646005,0.0001178,2]
[323424489,1713976249771,-500.0,0.0001178,2]
[323424491,1713976249780,-500.0,0.0001178,2]
[323424493,1713976249789,-507.83,0.0001178,2]
[323424495,1713976249798,-500.0,0.0001178,2]
[323424498,1713976249811,-734.4,0.0001178,2]
[323424500,1713976249820,-500.0,0.0001178,2]
[323424501,1713976249829,-500.0,0.0001178,2]
[323424503,1713976249839,-323.59,0.0001178,2]
[323424505,1713976249848,-500.0,0.0001178,2]
[323424507,1713976249858,-500.0,0.0001178,2]
[323424509,1713976249867,-820.26,0.0001178,2]
[323424511,1713976249877,-500.0,0.0001178,2]
[323424514,1713976249888,-500.0,0.0001178,2]
[323424515,1713976249897,-500.0,0.0001178,2]
[323424517,1713976249906,-1759.19,0.0001178,2]
[323424519,1713976249915,-740.61,0.0001178,2]
[323424521,1713976249924,-500.0,0.0001178,2]
[323424523,1713976249933,-500.0,0.0001178,2]
[323424525,1713976249943,-500.0,0.0001178,2]
[323424527,1713976249952,-500.0,0.0001178,2]
[323424529,1713976249961,-303.81269664,0.0001178,2]
[323424531,1713976249970,-571.82,0.0001178,2]
[323424533,1713976249979,-500.0,0.0001178,2]
[323424535,1713976249987,-500.0,0.0001178,2]
[323424537,1713976249996,-500.0,0.0001178,2]
[323424539,1713976250005,-634.48,0.0001178,2]
[323424541,1713976250014,-500.0,0.0001178,2]
[323424543,1713976250023,-500.0,0.0001178,2]
[323424545,1713976250032,-1181.58,0.0001178,2]
[323424547,1713976250041,-500.0,0.0001178,2]
[323424549,1713976250050,-603.08,0.0001178,2]
[323424551,1713976250059,-710.55,0.0001178,2]
[323424553,1713976250068,-644.08,0.0001178,2]
[323424555,1713976250078,-500.0,0.0001178,2]
[323424557,1713976250086,-569.21,0.0001178,2]
[323424559,1713976250096,-1086.95,0.0001178,2]
[323424561,1713976250105,-500.0,0.0001178,2]
[323424563,1713976250115,-1712.03,0.0001178,2]
[323424565,1713976250124,-500.0,0.0001178,2]
[323424567,1713976250134,-500.0,0.0001178,2]
[323424569,1713976250143,-500.0,0.0001178,2]
[323424571,1713976250153,-1159.56,0.0001178,2]
[323424573,1713976250162,-1454.53,0.0001178,2]
[323424575,1713976250173,-500.0,0.0001178,2]
[323424577,1713976250182,-1161.19,0.0001178,2]
[323424579,1713976250191,-500.0,0.0001178,2]
[323424581,1713976250201,-500.0,0.0001178,2]
[323424583,1713976250210,-500.0,0.0001178,2]
[323424585,1713976250220,-819.33,0.0001178,2]
[323424587,1713976250229,-500.0,0.0001178,2]
[323424589,1713976250238,-573.51,0.0001178,2]
[323424591,1713976250247,-1224.05,0.0001178,2]
[323424593,1713976250256,-500.0,0.0001178,2]
[323424595,1713976250265,-520.44,0.0001178,2]
[323424597,1713976250275,-500.0,0.0001178,2]
[323424599,1713976250284,-246.61,0.0001178,2]
[323424601,1713976250294,-500.0,0.0001178,2]
[323424602,1713976250304,-1002.78,0.0001178,2]
[323424604,1713976250314,-500.0,0.0001178,2]
[323424607,1713976250324,-603.7,0.0001178,2]
[323424608,1713976250333,-729.16,0.0001178,2]
[323424610,1713976250343,-500.0,0.0001178,2]
[323424613,1713976250353,-2225.58,0.0001178,2]
[323424614,1713976250363,-500.0,0.0001178,2]
[323424617,1713976250373,-1036.59,0.0001178,2]
[323424619,1713976250384,-500.0,0.0001178,2]
[323424620,1713976250393,-500.0,0.0001178,2]
[323424622,1713976250403,-500.0,0.0001178,2]
[323424624,1713976250413,-1710.7,0.0001178,2]
[323424626,1713976250423,-500.0,0.0001178,2]
[323424629,1713976250434,-500.0,0.0001178,2]
[323424630,1713976250444,-500.0,0.0001178,2]
[323424632,1713976250453,-500.0,0.0001178,2]
[323424635,1713976250464,-838.34,0.0001178,2]
[323424637,1713976250474,-640.61,0.0001178,2]
[323424639,1713976250487,-500.0,0.0001178,2]
[323424641,1713976250496,-500.0,0.0001178,2]
[323424643,1713976250506,-500.0,0.0001178,2]
[323424645,1713976250515,-500.0,0.0001178,2]
[323424647,1713976250525,-4367.33,0.0001178,2]
[323424648,1713976250535,-1550.3,0.0001178,2]
[323424650,1713976250545,-1320.6,0.0001178,2]
[323424652,1713976250554,-519.59,0.0001178,2]
[323424655,1713976250566,-2648.44,0.0001178,2]
[323424656,1713976250575,-500.0,0.0001178,2]
[323424658,1713976250585,-500.0,0.0001178,2]
[323424660,1713976250594,-2917.87,0.0001178,2]
[323424662,1713976250605,-4365.04,0.0001178,2]
[323424664,1713976250615,-1297.57,0.0001178,2]
[323424667,1713976250625,-8081.13,0.0001178,2]
[323424669,1713976250636,-1198.52,0.0001178,2]
[323424670,1713976250646,-3084.65,0.0001178,2]
[323424672,1713976250656,-500.0,0.0001178,2]
[323424674,1713976250666,-1659.5,0.0001178,2]
[323424676,1713976250676,-1965.41,0.0001178,2]
[323424678,1713976250686,-913.76,0.0001178,2]
[323424680,1713976250697,-881.97,0.0001178,2]
[323424682,1713976250707,-500.0,0.0001178,2]
[323424685,1713976250718,-3063.39,0.0001178,2]
[323424687,1713976250728,-500.0,0.0001178,2]
[323424689,1713976250738,-1187.38,0.0001178,2]
[323424690,1713976250748,-1779.17,0.0001178,2]
[323424693,1713976250758,-1604.06,0.0001178,2]
[323424695,1713976250768,-500.0,0.0001178,2]
[323424696,1713976250778,-500.0,0.0001178,2]
[323424698,1713976250788,-500.0,0.0001178,2]
[323424701,1713976250798,-6175.45,0.0001178,2]
[323424703,1713976250811,-5311.69,0.0001178,2]
[323424704,1713976250821,-500.0,0.0001178,2]
[323424706,1713976250831,-500.0,0.0001178,2]
[323424709,1713976250840,-2178.02,0.0001178,2]
[323424711,1713976250850,-1296.94,0.0001178,2]
[323424712,1713976250859,-500.0,0.0001178,2]
[323424714,1713976250869,-591.15,0.0001178,2]
[323424716,1713976250880,-3148.34,0.0001178,2]
[323424719,1713976250892,-872.64,0.0001178,2]
[323424721,1713976250902,-911.06,0.0001178,2]
[323424722,1713976250911,-3053.76,0.0001178,2]
[323424724,1713976250921,-500.0,0.0001178,2]
[323424727,1713976250930,-1324.88,0.0001178,2]
[323424729,1713976250940,-1375.05,0.0001178,2]
[323424730,1713976250951,-746.39,0.0001178,2]
[323424732,1713976250960,-2805.05,0.0001178,2]
[323424735,1713976250970,-1037.34,0.0001178,2]
[323424736,1713976250979,-960.9,0.0001178,2]
[323424739,1713976250988,-1177.67,0.0001178,2]
[323424740,1713976250997,-500.0,0.0001178,2]
[323424742,1713976251006,-5007.68,0.0001178,2]
[323424744,1713976251016,-1713.56,0.0001178,2]
[323424746,1713976251025,-993.66,0.0001178,2]
[323424748,1713976251035,-3361.85,0.0001178,2]
[323424750,1713976251044,-982.57,0.0001178,2]
[323424751,1713976251053,-500.0,0.0001178,2]
[323424752,1713976251062,-541.47,0.0001178,2]
[323424753,1713976251071,-816.12,0.0001178,2]
[323424754,1713976251081,-500.0,0.0001178,2]
[323424755,1713976251090,-500.0,0.0001178,2]
[323424756,1713976251100,-675.35,0.0001178,2]
[323424757,1713976251109,-2925.39,0.0001178,2]
[323424758,1713976251119,-2187.48,0.0001178,2]
[323424759,1713976251129,-2115.12,0.0001178,2]
[323424760,1713976251140,-500.0,0.0001178,2]
[323424761,1713976251150,-1824.0,0.0001178,2]
[323424763,1713976251159,-2338.0,0.0001178,2]
[323424765,1713976251169,-500.0,0.0001178,2]
[323424767,1713976251179,-1261.55,0.0001178,2]
[323424769,1713976251188,-957.51,0.0001178,2]
[323424771,1713976251198,-3129.43,0.0001178,2]
[323424773,1713976251207,-403.83760016,0.0001178,2]
[323424812,1713976251576,-908.61920816,0.0001178,2]
[323424814,1713976251587,-277.95049437,0.0001178,2]
[323424816,1713976251599,-1730.58943191,0.0001178,2]
[323424818,1713976251610,-2062.48042031,0.0001178,2]
[323424821,1713976251629,-728.65757554,0.0001178,2]
[323424824,1713976251641,-255.326,0.0001178,2]
[323424827,1713976251668,-500.0,0.00011232,2]
[323424830,1713976251678,-2849.00926955,0.0001178,2]
[323424832,1713976251688,-500.0,0.0001178,2]
[323424833,1713976251698,-1043.04,0.0001178,2]
[323424836,1713976251707,-1391.34,0.0001178,2]
[323424837,1713976251717,-1867.59,0.0001178,2]
[323424840,1713976251726,-1528.0,0.0001178,2]
[323424841,1713976251736,-500.0,0.0001178,2]
[323424843,1713976251745,-175.05611843,0.0001178,2]
[323424845,1713976251754,-426.48,0.0001178,2]
[323424847,1713976251763,-900.23,0.0001178,2]
[323424849,1713976251772,-1992.68,0.0001178,2]
[323424851,1713976251781,-5137.5,0.0001178,2]
[323424853,1713976251790,-851.11,0.0001178,2]
[323424855,1713976251800,-1575.56,0.0001178,2]
[323424857,1713976251809,-2608.84,0.0001178,2]
[323424860,1713976251819,-7758.68,0.0001178,2]
[323424862,1713976251828,-1135.85,0.0001178,2]
[323424863,1713976251839,-834.43,0.0001178,2]
[323424866,1713976251849,-500.0,0.0001178,2]
[323424867,1713976251859,-500.0,0.0001178,2]
[323424869,1713976251868,-2309.45,0.0001178,2]
[323424871,1713976251878,-820.12,0.0001178,2]
[323424874,1713976251890,-2774.93,0.0001178,2]
[323424875,1713976251899,-2192.51,0.0001178,2]
[323424877,1713976251907,-2416.98,0.0001178,2]
[323424879,1713976251916,-500.0,0.0001178,2]
[323424881,1713976251926,-1213.21,0.0001178,2]
[323424884,1713976251935,-943.25,0.0001178,2]
[323424885,1713976251944,-768.28,0.0001178,2]
[323424887,1713976251953,-1813.22,0.0001178,2]
[323424890,1713976251963,-1127.54,0.0001178,2]
[323424891,1713976251971,-1279.26,0.0001178,2]
[323424894,1713976251980,-1167.27,0.0001178,2]
[323424896,1713976251990,-508.59,0.0001178,2]
[323424899,1713976252011,-2095.87,0.0001178,2]
[323424901,1713976252022,-1553.99,0.0001178,2]
[323424903,1713976252032,-1839.75,0.0001178,2]
[323424905,1713976252042,-584.71,0.0001178,2]
[323424907,1713976252053,-3418.02,0.0001178,2]
[323424909,1713976252064,-636.69,0.0001178,2]
[323424911,1713976252075,-1220.46,0.0001178,2]
[323424913,1713976252085,-2799.01,0.0001178,2]
[323424915,1713976252096,-500.0,0.0001178,2]
[323424917,1713976252106,-4314.83,0.0001178,2]
[323424919,1713976252117,-500.0,0.0001178,2]
[323424921,1713976252127,-500.0,0.0001178,2]
[323424923,1713976252143,-592.12,0.0001178,2]
[323424925,1713976252153,-500.0,0.0001178,2]
[323424927,1713976252165,-1945.28,0.0001178,2]
[323424929,1713976252177,-1232.81,0.0001178,2]
[323424931,1713976252191,-2272.15,0.0001178,2]
[323424933,1713976252202,-1584.98,0.0001178,2]
[323424935,1713976252212,-1559.8,0.0001178,2]
[323424937,1713976252222,-3166.0,0.0001178,2]
[323424939,1713976252232,-1218.47,0.0001178,2]
[323424942,1713976252249,-500.0,0.0001178,2]
[323424944,1713976252259,-644.11,0.0001178,2]
[323424946,1713976252268,-685.75,0.0001178,2]
[323424948,1713976252280,-5225.37,0.0001178,2]
[323424950,1713976252290,-500.0,0.0001178,2]
[323424952,1713976252299,-500.0,0.0001178,2]
[323424954,1713976252309,-2275.67,0.0001178,2]
[323424956,1713976252319,-3080.73,0.0001178,2]
[323424958,1713976252329,-500.0,0.0001178,2]
[323424960,1713976252338,-500.0,0.0001178,2]
[323424962,1713976252347,-785.82,0.0001178,2]
[323424964,1713976252358,-1915.51,0.0001178,2]
[323424966,1713976252368,-747.07,0.0001178,2]
[323424968,1713976252377,-1824.07,0.0001178,2]
[323424970,1713976252391,-5977.1,0.0001178,2]
[323424972,1713976252401,-4343.19,0.0001178,2]
[323424974,1713976252410,-3121.44,0.0001178,2]
[323424976,1713976252419,-1232.48,0.0001178,2]
[323424978,1713976252429,-626.45,0.0001178,2]
[323424980,1713976252439,-2365.18,0.0001178,2]
[323424982,1713976252449,-831.43,0.0001178,2]
[323424985,1713976252459,-500.0,0.0001178,2]
[323424986,1713976252468,-970.38,0.0001178,2]
[323424988,1713976252478,-500.0,0.0001178,2]
[323424990,1713976252487,-500.0,0.0001178,2]
[323424993,1713976252497,-1171.25,0.0001178,2]
[323424995,1713976252506,-1965.03,0.0001178,2]
[323424997,1713976252516,-1489.46,0.0001178,2]
[323424998,1713976252525,-500.0,0.0001178,2]
[323425001,1713976252535,-500.0,0.0001178,2]
[323425003,1713976252546,-868.55,0.0001178,2]
[323425005,1713976252555,-958.46,0.0001178,2]
[323425007,1713976252565,-1857.9,0.0001178,2]
[323425008,1713976252575,-5047.2,0.0001178,2]
[323425010,1713976252584,-640.25,0.0001178,2]
[323425012,1713976252594,-567.55,0.0001178,2]
[323425014,1713976252603,-956.3,0.0001178,2]
[323425016,1713976252613,-500.0,0.0001178,2]
[323425019,1713976252622,-2767.3,0.0001178,2]
[323425021,1713976252631,-2476.67,0.0001178,2]
[323425023,1713976252644,-500.0,0.0001178,2]
[323425025,1713976252653,-151.69376941,0.00011854,2]
[323425026,1713976252662,-942.31121661,0.00012,2]
[323425028,1713976252672,-151.69376941,0.00012004,2]
[323425030,1713976252682,-158.9,0.00012033,2]
[323425032,1713976252691,-1082.25647204,0.00012053,2]
[323425034,1713976252700,-500.0,0.00012053,2]
[323425036,1713976252710,-500.0,0.00012054,2]
[323425039,1713976252719,-500.0,0.00012054,2]
[323425040,1713976252728,-500.0,0.00012054,2]
[323425042,1713976252737,-473.31782051,0.00012054,2]
[323425044,1713976252748,-594.12556781,0.00012054,2]
[323425046,1713976252757,-500.0,0.00012054,2]
[323425048,1713976252767,-500.0,0.00012054,2]
[323425050,1713976252776,-500.0,0.00012054,2]
[323425053,1713976252786,-500.0,0.00012054,2]
[323425054,1713976252798,-500.0,0.00012054,2]
[323425056,1713976252810,-500.0,0.00012054,2]
[323425059,1713976252819,-500.0,0.00012054,2]
[323425061,1713976252829,-500.0,0.00012054,2]
[323425063,1713976252839,-500.0,0.00012054,2]
[323425064,1713976252848,-500.0,0.00012054,2]
[323425066,1713976252858,-500.0,0.00012054,2]
[323425068,1713976252867,-791.18,0.00012054,2]
[323425071,1713976252877,-500.0,0.00012054,2]
[323425073,1713976252890,-500.0,0.00012054,2]
[323425074,1713976252900,-507.83,0.00012054,2]
[323425076,1713976252910,-500.0,0.00012054,2]
[323425078,1713976252919,-734.4,0.00012054,2]
[323425080,1713976252928,-500.0,0.00012054,2]
[323425082,1713976252937,-500.0,0.00012054,2]
[323425084,1713976252947,-500.0,0.00012054,2]
[323425086,1713976252956,-500.0,0.00012054,2]
[323425088,1713976252966,-820.26,0.00012054,2]
[323425091,1713976252975,-500.0,0.00012054,2]
[323425093,1713976252985,-500.0,0.00012054,2]
[323425094,1713976252994,-500.0,0.00012054,2]
[323425097,1713976253003,-1759.19,0.00012054,2]
[323425098,1713976253013,-740.61,0.00012054,2]
[323425101,1713976253023,-500.0,0.00012054,2]
[323425103,1713976253032,-500.0,0.00012054,2]
[323425119,1713976253222,-500.0,0.00012054,2]
[323425121,1713976253236,-500.0,0.00012054,2]
[323425123,1713976253247,-571.82,0.00012054,2]
[323425125,1713976253259,-500.0,0.00012054,2]
[323425127,1713976253274,-500.0,0.00012054,2]
[323425129,1713976253286,-500.0,0.00012054,2]
[323425130,1713976253298,-634.48,0.00012054,2]
[323425131,1713976253308,-500.0,0.00012054,2]
[323425132,1713976253320,-500.0,0.00012054,2]
[323425133,1713976253330,-1181.58,0.00012054,2]
[323425134,1713976253341,-500.0,0.00012054,2]
[323425135,1713976253351,-603.08,0.00012054,2]
[323425136,1713976253361,-710.55,0.00012054,2]
[323425137,1713976253379,-644.08,0.00012054,2]
[323425138,1713976253397,-386.64947218,0.00012054,2]
[323425139,1713976253409,-569.21,0.00012054,2]
[323425140,1713976253419,-1086.95,0.00012054,2]
[323425142,1713976253430,-500.0,0.00012054,2]
[323425144,1713976253441,-1712.03,0.00012054,2]
[323425145,1713976253453,-500.0,0.00012054,2]
[323425147,1713976253464,-500.0,0.00012054,2]
[323425150,1713976253477,-487.97145265,0.00012054,2]
[323425156,1713976253540,-12.02854735,0.00012054,2]
[323425158,1713976253552,-1159.56,0.00012054,2]
[323425160,1713976253563,-1454.53,0.00012054,2]
[323425162,1713976253575,-500.0,0.00012054,2]
[323425164,1713976253587,-1161.19,0.00012054,2]
[323425166,1713976253598,-500.0,0.00012054,2]
[323425168,1713976253610,-500.0,0.00012054,2]
[323425170,1713976253622,-500.0,0.00012054,2]
[323425172,1713976253638,-819.33,0.00012054,2]
[323425174,1713976253650,-500.0,0.00012054,2]
[323425176,1713976253662,-573.51,0.00012054,2]
[323425178,1713976253675,-1224.05,0.00012054,2]
[323425180,1713976253688,-500.0,0.00012054,2]
[323425182,1713976253699,-520.44,0.00012054,2]
[323425184,1713976253710,-500.0,0.00012054,2]
[323425186,1713976253723,-6047.53893999,0.00012054,2]
[323425188,1713976253735,-246.61,0.00012054,2]
[323425190,1713976253746,-500.0,0.00012054,2]
[323425192,1713976253759,-1002.78,0.00012054,2]
[323425194,1713976253770,-500.0,0.00012054,2]
[323425196,1713976253782,-603.7,0.00012054,2]
[323425198,1713976253797,-729.16,0.00012054,2]
[323425200,1713976253809,-500.0,0.00012054,2]
[323425202,1713976253820,-2225.58,0.00012054,2]
[323425204,1713976253831,-500.0,0.00012054,2]
[323425206,1713976253843,-1036.59,0.00012054,2]
[323425207,1713976253853,-500.0,0.00012054,2]
[323425210,1713976253865,-500.0,0.00012054,2]
[323425211,1713976253875,-381.71847019,0.00012054,2]
[323425214,1713976253898,-118.28152981,0.00012054,2]
[323425216,1713976253909,-1710.7,0.00012054,2]
[323425218,1713976253922,-500.0,0.00012054,2]
[323425220,1713976253933,-500.0,0.00012054,2]
[323425222,1713976253945,-500.0,0.00012054,2]
[323425224,1713976253955,-500.0,0.00012054,2]
[323425225,1713976253966,-838.34,0.00012054,2]
[323425227,1713976253978,-500.0,0.00012054,2]
[323425230,1713976253993,-500.0,0.00012054,2]
[323425232,1713976254004,-500.0,0.00012054,2]
[323425234,1713976254016,-500.0,0.00012054,2]
[323425236,1713976254026,-4367.33,0.00012054,2]
[323425238,1713976254037,-1550.3,0.00012054,2]
[323425239,1713976254051,-1320.6,0.00012054,2]
[323425242,1713976254063,-519.59,0.00012054,2]
[323425244,1713976254073,-2648.44,0.00012054,2]
[323425245,1713976254085,-500.0,0.00012054,2]
[323425248,1713976254097,-500.0,0.00012054,2]
[323425250,1713976254109,-2917.87,0.00012054,2]
[323425251,1713976254120,-4365.04,0.00012054,2]
[323425253,1713976254131,-1297.57,0.00012054,2]
[323425255,1713976254150,-8081.13,0.00012054,2]
[323425258,1713976254161,-1198.52,0.00012054,2]
[323425260,1713976254172,-3084.65,0.00012054,2]
[323425261,1713976254183,-500.0,0.00012054,2]
[323425264,1713976254194,-1659.5,0.00012054,2]
[323425265,1713976254205,-1965.41,0.00012054,2]
[323425268,1713976254216,-913.76,0.00012054,2]
[323425270,1713976254226,-881.97,0.00012054,2]
[323425272,1713976254237,-500.0,0.00012054,2]
[323425274,1713976254249,-3063.39,0.00012054,2]
[323425276,1713976254260,-500.0,0.00012054,2]
[323425278,1713976254271,-1187.38,0.00012054,2]
[323425280,1713976254282,-1779.17,0.00012054,2]
[323425282,1713976254292,-1604.06,0.00012054,2]
[323425283,1713976254304,-500.0,0.00012054,2]
[323425285,1713976254315,-500.0,0.00012054,2]
[323425287,1713976254325,-500.0,0.00012054,2]
[323425289,1713976254336,-2844.71853742,0.00012054,2]
[323425292,1713976254349,-290.41120918,0.00012054,2]
[323425294,1713976254362,-3040.3202534,0.00012054,2]
[323425296,1713976254373,-5311.69,0.00012054,2]
[323425298,1713976254383,-500.0,0.00012054,2]
[323425300,1713976254400,-500.0,0.00012054,2]
[323425301,1713976254413,-2178.02,0.00012054,2]
[323425304,1713976254424,-1296.94,0.00012054,2]
[323425305,1713976254434,-500.0,0.00012054,2]
[323425308,1713976254446,-591.15,0.00012054,2]
[323425310,1713976254458,-2732.2264466,0.00012054,2]
[323425381,1713976255186,-411.10777307,0.00010958,2]
[323425384,1713976255196,-1201.71722693,0.0001123,2]
[323425386,1713976255207,-1279.96,0.0001123,2]
[323425388,1713976255218,-562.7045,0.0001123,2]
[323425390,1713976255232,-36.10543712,0.0001123,2]
[323425392,1713976255242,-429.34462288,0.00011506,2]
[323425394,1713976255254,-70.65537712,0.00011506,2]
[323425396,1713976255264,-194.50173194,0.0001178,2]
[323425399,1713976255276,-305.49826806,0.0001178,2]
[323425401,1713976255285,-189.91273194,0.00012054,2]
[323425405,1713976255321,-226.20082146,0.00012054,2]
[323425407,1713976255332,-792.09917854,0.00012054,2]
[323425410,1713976255345,-80.54082146,0.00012054,2]
[323425412,1713976255354,-589.35590554,0.00012054,2]
[323425414,1713976255366,-321.70409446,0.00012054,2]
[323425416,1713976255376,-3053.76,0.00012054,2]
[323425418,1713976255389,-500.0,0.00012054,2]
[323425420,1713976255399,-1375.05,0.00012054,2]
[323425422,1713976255409,-746.39,0.00012054,2]
[323425424,1713976255419,-1324.88,0.00012054,2]
[323425426,1713976255428,-2805.05,0.00012054,2]
[323425428,1713976255439,-1037.34,0.00012054,2]
[323425430,1713976255448,-960.9,0.00012054,2]
[323425432,1713976255458,-1177.67,0.00012054,2]
[323425434,1713976255467,-500.0,0.00012054,2]
[323425436,1713976255477,-5007.68,0.00012054,2]
[323425438,1713976255488,-1270.70503098,0.00012054,2]
[323425440,1713976255500,-442.85496902,0.00012054,2]
[323425442,1713976255509,-502.6643548,0.00012054,2]
[323425445,1713976255521,-490.9956452,0.00012054,2]
[323425447,1713976255531,-3361.85,0.00012054,2]
[323425449,1713976255542,-982.57,0.00012054,2]
[323425451,1713976255552,-500.0,0.00012054,2]
[323425453,1713976255561,-541.47,0.00012054,2]
[323425455,1713976255571,-816.12,0.00012054,2]
[323425456,1713976255581,-500.0,0.00012054,2]
[323425457,1713976255590,-500.0,0.00012054,2]
[323425458,1713976255599,-675.35,0.00012054,2]
[323425459,1713976255607,-2925.39,0.00012054,2]
[323425460,1713976255617,-2187.48,0.00012054,2]
[323425461,1713976255625,-2115.12,0.00012054,2]
[323425462,1713976255638,-500.0,0.00012054,2]
[323425463,1713976255647,-2338.0,0.00012054,2]
[323425464,1713976255656,-1824.0,0.00012054,2]
[323425465,1713976255665,-500.0,0.00012054,2]
[323425466,1713976255674,-1261.55,0.00012054,2]
[323425468,1713976255683,-957.51,0.00012054,2]
[323425470,1713976255692,-3129.43,0.00012054,2]
[323425506,1713976256020,-9216.47,0.00012054,2]
[323425508,1713976256030,-500.0,0.00012054,2]
[323425510,1713976256042,-1043.04,0.00012054,2]
[323425512,1713976256052,-1391.34,0.00012054,2]
[323425514,1713976256062,-1867.59,0.00012054,2]
[323425516,1713976256072,-1528.0,0.00012054,2]
[323425518,1713976256082,-500.0,0.00012054,2]
[323425520,1713976256092,-900.23,0.00012054,2]
[323425522,1713976256102,-1992.68,0.00012054,2]
[323425524,1713976256111,-4684.6143548,0.00012054,2]
[323425527,1713976256123,-452.8856452,0.00012054,2]
[323425529,1713976256132,-62.60097162,0.00012054,2]
[323425531,1713976256149,-323.335,0.00012054,2]
[323425533,1713976256161,-465.17402838,0.00012054,2]
[323425535,1713976256171,-1575.56,0.00012054,2]
[323425537,1713976256180,-1508.62609839,0.00012054,2]
[323425540,1713976256191,-1100.21390161,0.00012054,2]
[323425542,1713976256201,-127.47609839,0.00012054,2]
[323425544,1713976256212,-387.53754655,0.00012054,2]
[323425546,1713976256224,-794.89183922,0.00012054,2]
[323425548,1713976256235,-6448.77451584,0.00012054,2]
[323425550,1713976256245,-905.44537056,0.00012054,2]
[323425554,1713976256266,-230.40462944,0.00012054,2]
[323425556,1713976256275,-680.84632935,0.00012054,2]
[323425558,1713976256286,-153.58367065,0.00012054,2]
[323425560,1713976256296,-500.0,0.00012054,2]
[323425562,1713976256305,-197.65,0.00012054,2]
[323425564,1713976256315,-643.20107251,0.00012054,2]
[323425566,1713976256328,-638.0945318,0.00012054,2]
[323425569,1713976256340,-1028.15439569,0.00012054,2]
[323425571,1713976256349,-820.12,0.00012054,2]
[323425573,1713976256359,-2774.93,0.00012054,2]
[323425575,1713976256369,-2192.51,0.00012054,2]
[323425577,1713976256378,-2416.98,0.00012054,2]
[323425579,1713976256391,-500.0,0.00012054,2]
[323425581,1713976256400,-1213.21,0.00012054,2]
[323425583,1713976256410,-943.25,0.00012054,2]
[323425585,1713976256419,-768.28,0.00012054,2]
[323425587,1713976256429,-1813.22,0.00012054,2]
[323425589,1713976256438,-1279.26,0.00012054,2]
[323425591,1713976256449,-1127.54,0.00012054,2]